bitfinex/quotes_ETHUSD_20240922
["timestamp","ask_amount","ask_price","bid_price","bid_amount"]
[1726982405803,3.85996,2590.7,2590.2,3.86062]
[1726982406001,6.15153,2590.8,2590.2,3.86062]
[1726982406203,2.2917,2590.8,2590.2,3.86059]
[1726982406511,6.766664,2590.8,2590.2,3.86059]
[1726982406896,6.766664,2590.8,2590.2,7.72121]
[1726982407267,6.766664,2590.8,2590.2,3.86059]
[1726982407470,3.86011,2590.6,2590.0,3.86089]
[1726982407703,1.1176774,2590.6,2590.1,3.86082]
[1726982408178,2.8417,2590.5,2589.8,5.18216]
[1726982408502,3.86042,2590.4,2589.9,3.86113]
[1726982408676,2.8417,2590.5,2590.0,3.86098]
[1726982409267,3.26316867,2590.5,2589.8,3.86121]
[1726982409467,0.55,2590.2,2589.8,3.86121]
[1726982409771,2.2917,2590.5,2589.8,3.8612]
[1726982409997,4.4108,2590.2,2589.6,3.8615]
[1726982410868,2.2917,2590.1,2589.5,3.86164]
[1726982411073,2.2917,2590.1,2589.6,3.86149]
[1726982411503,2.2917,2590.1,2589.7,3.86141]
[1726982411880,6.18426,2590.4,2589.7,3.86141]
[1726982412610,0.55,2590.3,2589.8,3.86128]
[1726982412985,4.41056,2590.3,2589.7,3.86141]
[1726982413400,1.609482,2590.3,2589.7,3.86136]
[1726982413700,3.86078,2590.2,2589.5,3.86161]
[1726982413917,3.86078,2590.2,2589.7,3.86142]
[1726982414800,1.609482,2590.3,2589.7,7.72272]
[1726982415004,0.55,2590.3,2589.8,3.86126]
[1726982415401,2.3238,2590.4,2589.9,3.86115]
[1726982415625,4.41064,2590.3,2589.5,3.86161]
[1726982415781,3.86113,2590.0,2589.4,1.3209]
[1726982415977,6.18454,2590.2,2589.6,3.8615]
[1726982416279,0.55,2590.1,2589.6,3.8615]
[1726982416522,3.86106,2590.0,2589.4,3.86175]
[1726982416681,2.3238,2589.9,2589.4,3.86175]
[1726982417025,6.18497,2589.9,2589.4,3.86175]
[1726982417175,6.18497,2589.9,2589.2,3.86212]
[1726982417176,3.86152,2589.7,2589.2,3.86212]
[1726982417380,0.55,2589.6,2589.2,3.86211]
[1726982418205,0.55,2589.6,2589.0,3.86242]
[1726982418407,0.55,2589.6,2588.8,5.18358]
[1726982418607,2.3238,2589.7,2589.0,7.41992698]
[1726982418943,2.3238,2590.0,2589.3,3.55757698]
[1726982419230,2.3238,2590.2,2589.6,4.87847698]
[1726982419828,2.3238,2590.2,2589.6,8.73996698]
[1726982421039,0.55,2590.0,2589.4,3.0]
[1726982421243,3.86115,2589.9,2589.3,4.87847698]
[1726982421426,2.3238,2589.7,2589.1,8.18314]
[1726982421763,6.18534,2589.7,2589.1,1.3209]
[1726982422208,3.8617,2589.6,2589.1,1.3209]
[1726982422411,3.86186,2589.5,2588.8,5.18367]
[1726982422599,3.86186,2589.5,2588.8,1.3209]
[1726982422943,3.86184,2589.5,2588.9,3.8626]
[1726982423810,3.86183,2589.5,2588.9,3.8626]
[1726982424021,7.72367,2589.5,2588.9,3.8626]
[1726982424407,3.86198,2589.4,2588.8,1.3209]
[1726982424803,3.86228,2589.2,2588.6,3.0]
[1726982425551,3.86239,2589.1,2588.6,3.0]
[1726982425753,3.86228,2589.2,2588.6,3.0]
[1726982426040,3.86228,2589.2,2588.6,6.86306]
[1726982426445,3.86235,2589.1,2588.6,6.86306]
[1726982427144,3.86259,2589.0,2588.5,4.3209]
[1726982427346,3.86259,2589.0,2588.5,8.18412]
[1726982427941,3.86259,2589.0,2588.4,3.55757698]
[1726982428160,3.86281,2588.8,2588.3,4.3209]
[1726982428860,6.18661,2588.8,2588.3,1.3209]
[1726982429560,2.3238,2588.8,2588.1,4.87847698]
[1726982429733,2.3238,2588.5,2588.0,2.20541662]
[1726982430074,6.18709,2588.5,2588.0,2.20541662]
[1726982430369,10.05043,2588.5,2588.0,2.20541662]
[1726982430549,3.86339,2588.4,2588.0,2.20541662]
[1726982431952,6.18709,2588.5,2588.0,2.20541662]
[1726982431953,3.86378,2588.2,2588.0,2.20541662]
[1726982432152,7.72721,2588.3,2588.0,2.20541662]
[1726982432349,0.55,2588.4,2588.0,2.20541662]
[1726982432531,6.18714,2588.5,2588.0,6.06937662]
[1726982432731,6.18714,2588.5,2588.0,7.39027662]
[1726982433426,6.18714,2588.5,2588.0,3.52631662]
[1726982434949,6.18714,2588.5,2588.0,7.39025662]
[1726982435527,6.18714,2588.5,2588.0,3.52631662]
[1726982435951,2.3238,2588.5,2588.0,7.39021662]
[1726982436164,6.24219,2588.8,2588.2,3.86357]
[1726982436461,6.24219,2588.8,2588.3,3.8635]
[1726982436676,6.24219,2588.8,2588.1,3.0]
[1726982436677,3.86322,2588.6,2588.1,3.0]
[1726982436831,3.86294,2588.7,2588.1,6.86373]
[1726982437030,3.86294,2588.7,2588.1,6.94099721]
[1726982437467,3.86294,2588.7,2588.1,6.86373]
[1726982437665,3.86294,2588.7,2588.1,6.9409972]
[1726982438055,10.10522,2588.8,2588.2,3.86367]
[1726982438372,6.2423,2588.8,2588.2,3.86367]
[1726982438971,3.86318,2588.6,2588.1,3.0]
[1726982439130,3.86332,2588.5,2588.1,3.0]
[1726982439470,0.55,2588.7,2588.0,3.52631662]
[1726982439629,3.86369,2588.2,2588.0,2.20541662]
[1726982440274,3.86346,2588.4,2588.0,2.20541662]
[1726982440846,6.24252,2588.6,2588.0,2.20541662]
[1726982441043,3.86284,2588.8,2588.1,1.3209]
[1726982441247,3.86284,2588.8,2588.1,5.18464]
[1726982441574,3.86296,2588.7,2588.1,5.18464]
[1726982443664,3.86296,2588.7,2588.2,3.86367]
[1726982445277,3.86324,2588.5,2588.1,1.3209]
[1726982445502,2.3794,2588.4,2588.0,2.20541662]
[1726982445659,3.86355,2588.3,2588.0,2.20541662]
[1726982446859,2.3794,2588.4,2588.0,2.20541662]
[1726982447015,6.2429,2588.4,2588.0,2.20541662]
[1726982448407,3.86354,2588.3,2588.0,2.20541662]
[1726982448567,2.3794,2588.4,2588.0,2.20541662]
[1726982448762,3.86332,2588.5,2588.0,2.20541662]
[1726982448992,6.24243,2588.7,2588.1,1.3209]
[1726982449194,6.24243,2588.7,2588.2,3.86368]
[1726982451619,6.24243,2588.7,2588.1,1.3209]
[1726982451934,6.24243,2588.7,2588.1,5.18471]
[1726982452906,10.1055,2588.7,2588.1,5.18471]
[1726982453106,6.24243,2588.7,2588.1,5.18471]
[1726982453296,3.86311,2588.6,2588.1,1.3209]
[1726982453493,2.937443,2588.6,2588.0,2.20541662]
[1726982453800,10.03957,2588.6,2588.0,6.06935662]
[1726982454348,3.86341,2588.4,2588.0,2.20541662]
[1726982454529,3.86377,2588.2,2588.0,2.20541662]
[1726982454730,6.72703,2588.1,2588.0,2.20541662]
[1726982455035,7.78611,2588.1,2588.0,2.20541662]
[1726982456241,7.78611,2588.1,2587.8,0.0384902]
[1726982456242,6.17733,2587.9,2587.8,0.0384902]
[1726982456398,9.72733,2587.9,2587.8,0.0384902]
[1726982456597,6.72733,2587.9,2587.8,0.0384902]
[1726982456797,2.3132,2587.9,2587.8,0.0384902]
[1726982456992,3.86399,2588.0,2587.8,0.0384902]
[1726982456993,1.05908,2588.1,2587.8,0.0384902]
[1726982457301,3.86385,2588.1,2587.8,0.0384902]
[1726982457503,3.86377,2588.2,2587.8,0.0384902]
[1726982457698,7.72757,2588.2,2587.5,3.86466]
[1726982457921,3.86377,2588.2,2587.5,3.86464]
[1726982458124,3.86377,2588.2,2587.5,7.72924]
[1726982458326,3.86377,2588.2,2587.5,3.8646]
[1726982458539,3.86377,2588.2,2587.6,3.86458]
[1726982458745,2.3132,2588.4,2587.7,3.94171283]
[1726982458924,2.3132,2588.4,2587.9,3.86404]
[1726982459133,3.86316,2588.6,2587.9,3.86404]
[1726982459134,6.17636,2588.6,2587.9,3.86404]
[1726982459440,3.86325,2588.5,2587.9,3.86404]
[1726982459804,3.8634,2588.4,2587.9,3.86413]
[1726982460003,3.86332,2588.5,2587.9,3.86413]
[1726982460630,3.86355,2588.3,2587.8,2.4506]
[1726982460969,3.86384,2588.1,2587.5,6.31524]
[1726982461267,3.86384,2588.1,2587.5,10.17988]
[1726982461543,3.86384,2588.1,2587.5,6.31524]
[1726982461773,3.86384,2588.1,2587.5,6.31523]
[1726982462059,3.86361,2588.3,2587.7,7.72878]
[1726982462341,3.86361,2588.3,2587.8,3.86423]
[1726982462951,3.86361,2588.3,2587.7,3.86435]
[1726982463252,4.636303,2588.3,2587.5,6.31521]
[1726982463754,4.636303,2588.3,2587.7,3.86439]
[1726982464115,8.499943,2588.3,2587.7,3.86439]
[1726982464338,4.636303,2588.3,2587.7,3.86439]
[1726982464541,8.499953,2588.3,2587.7,3.86439]
[1726982464709,3.86371,2588.2,2587.7,3.86439]
[1726982465042,4.636303,2588.3,2587.7,7.72873]
[1726982465353,3.86361,2588.3,2587.7,3.86434]
[1726982465652,7.72725,2588.3,2587.7,3.86434]
[1726982465965,3.86361,2588.3,2587.7,3.86434]
[1726982466250,3.86347,2588.4,2587.8,3.86427]
[1726982466552,4.66442052,2588.4,2587.8,3.86427]
[1726982466765,0.80095052,2588.4,2588.2,3.86368]
[1726982466915,2.3132,2588.6,2588.2,3.86357]
[1726982467268,4.66382052,2588.8,2588.2,3.86357]
[1726982467552,0.80095052,2588.7,2588.2,3.86357]
[1726982468454,0.80095052,2588.6,2588.1,6.3143]
[1726982468660,0.80095052,2588.5,2588.1,6.3143]
[1726982469468,0.80095052,2588.4,2588.0,3.86388]
[1726982469621,0.80095052,2588.5,2588.0,3.86388]
[1726982469821,0.80095052,2588.5,2587.9,2.4506]
[1726982469822,3.11415052,2588.4,2587.9,2.4506]
[1726982470019,3.86355,2588.3,2587.7,5.4506]
[1726982470218,0.80095052,2588.2,2587.7,6.31495]
[1726982470835,4.66464052,2588.2,2587.7,2.4506]
[1726982471264,0.80095052,2588.2,2587.7,6.31494]
[1726982471653,0.80095052,2588.1,2587.7,6.31494]
[1726982473426,0.80095052,2588.1,2587.8,3.86427]
[1726982473629,0.80095052,2588.1,2587.7,2.4506]
[1726982473842,0.80095052,2588.1,2587.7,6.31498]
[1726982474037,1.93409626,2588.1,2587.6,3.86445]
[1726982474238,0.80095052,2588.0,2587.7,3.86441]
[1726982475321,0.80095052,2588.0,2587.8,3.86427]
[1726982475521,0.80095052,2588.1,2587.8,3.86427]
[1726982476032,0.80095052,2588.2,2588.0,3.86388]
[1726982476232,0.80095052,2588.2,2588.1,3.86383]
[1726982476474,1.60190105,2588.5,2588.1,3.86383]
[1726982476475,0.80095052,2588.4,2588.3,3.86353]
[1726982477049,0.80095052,2588.4,2588.1,3.8637]
[1726982477368,0.80095052,2588.4,2588.2,3.86365]
[1726982477521,0.80095052,2588.4,2587.9,6.13524]
[1726982477723,0.80095052,2588.3,2588.0,3.86386]
[1726982478143,0.80095052,2588.3,2587.9,2.2712]
[1726982478144,4.66453052,2588.3,2587.9,2.2712]
[1726982478339,4.66453052,2588.3,2587.7,11.24431]
[1726982478340,0.80095052,2588.1,2587.7,11.24431]
[1726982478569,0.80095052,2588.1,2587.8,3.86423]
[1726982479158,0.80095052,2588.1,2587.9,3.86413]
[1726982481374,0.80095052,2588.1,2587.7,3.86431]
[1726982481681,0.80095052,2588.1,2587.8,3.86428]
[1726982482256,0.80095052,2588.1,2587.7,3.86431]
[1726982482891,0.80095052,2588.1,2587.8,3.86423]
[1726982483596,0.80095052,2588.1,2587.9,3.86412]
[1726982483757,5.46536105,2588.4,2587.9,3.86412]
[1726982483758,0.80095052,2588.2,2587.9,3.86412]
[1726982486662,0.80095052,2588.2,2588.1,2.2712]
[1726982486858,0.80095052,2588.3,2588.1,6.13502]
[1726982487087,0.80095052,2588.3,2588.2,3.86368]
[1726982487302,0.80095052,2588.5,2588.2,3.86368]
[1726982487498,0.80095052,2588.5,2588.1,6.13502]
[1726982487661,0.80095052,2588.4,2588.1,9.99877]
[1726982487859,0.80095052,2588.4,2588.1,7.72748]
[1726982488060,0.80095052,2588.4,2588.2,3.86358]
[1726982488286,0.80095052,2588.3,2588.2,3.86358]
[1726982488486,0.80095052,2588.3,2587.9,6.13523]
[1726982488798,0.80095052,2588.2,2587.9,6.13523]
[1726982489096,0.80095052,2588.2,2588.1,3.86383]
[1726982489469,0.80095052,2588.3,2588.2,3.86368]
[1726982489788,1.20142579,2588.4,2588.2,3.86368]
[1726982489789,0.80095052,2588.4,2588.2,3.86368]
[1726982489987,0.80095052,2588.4,2588.3,3.86353]
[1726982490585,0.80095052,2588.4,2588.2,3.86368]
[1726982491102,0.80095052,2588.4,2588.2,7.72728]
[1726982491298,0.80095052,2588.4,2588.2,3.8636]
[1726982491604,0.80095052,2588.4,2588.2,3.86359]
[1726982492163,0.80095052,2588.4,2588.2,7.72718]
[1726982492596,0.80095052,2588.4,2588.2,3.86359]
[1726982493400,0.80095052,2588.3,2588.1,3.86383]
[1726982493737,0.80095052,2588.3,2588.0,3.8639]
[1726982494798,0.80095052,2588.4,2588.2,3.86368]
[1726982495402,0.80095052,2588.4,2588.3,3.86353]
[1726982496175,0.80095052,2588.5,2588.2,3.86368]
[1726982496372,0.80095052,2588.4,2588.1,3.8638]
[1726982496572,0.80095052,2588.3,2587.9,2.2712]
[1726982496875,0.80095052,2588.2,2587.8,3.86418]
[1726982497102,0.80095052,2588.2,2587.8,7.72838]
[1726982497410,0.80095052,2588.1,2587.7,6.26203]
[1726982497915,0.80095052,2588.1,2587.8,3.86419]
[1726982498885,0.80095052,2588.0,2587.8,3.86419]
[1726982500814,0.80095052,2588.1,2587.8,3.86419]
[1726982500979,0.80095052,2588.0,2587.8,3.86419]
[1726982501922,0.80095052,2588.0,2587.6,7.72901]
[1726982502217,0.80095052,2588.0,2587.5,6.86461]
[1726982502519,2.3615,2587.8,2587.4,6.86484]
[1726982502691,0.80095052,2587.7,2587.2,9.7777]
[1726982503324,0.80095052,2587.7,2587.5,3.8647]
[1726982504587,0.80095052,2587.7,2587.6,3.86458]
[1726982505112,0.80095052,2587.8,2587.6,3.86458]
[1726982505419,0.80095052,2587.8,2587.5,3.8647]
[1726982505987,0.80095052,2587.7,2587.5,3.8647]
[1726982507395,0.80095052,2587.7,2587.4,3.8648]
[1726982508436,0.80095052,2587.8,2587.6,3.55757698]
[1726982508591,1.20142579,2587.9,2587.6,3.55757698]
[1726982508592,0.80095052,2587.9,2587.7,3.86443]
[1726982508984,0.80095052,2588.0,2587.7,3.86443]
[1726982509185,0.80095052,2588.0,2587.7,3.86434]
[1726982509802,0.80095052,2588.0,2587.7,7.72869]
[1726982510384,0.80095052,2588.0,2587.8,3.86419]
[1726982510832,0.80095052,2588.0,2587.9,3.86413]
[1726982511198,0.80095052,2588.1,2588.0,3.86398]
[1726982511538,0.80095052,2588.2,2588.0,3.86398]
[1726982512105,0.80095052,2588.3,2588.2,3.86368]
[1726982512299,0.80095052,2588.4,2588.1,2.3594]
[1726982512502,0.80095052,2588.4,2588.1,6.22315]
[1726982512730,0.80095052,2588.3,2588.1,6.22315]
[1726982512890,0.80095052,2588.3,2588.1,3.86375]
[1726982513093,0.80095052,2588.3,2588.2,3.86368]
[1726982514053,0.80095052,2588.3,2588.0,3.86386]
[1726982514339,0.80095052,2588.2,2588.1,3.86383]
[1726982515306,0.80095052,2588.2,2588.0,3.86396]
[1726982515818,0.80095052,2588.2,2588.1,3.86383]
[1726982516116,1.20142579,2588.3,2588.1,3.86383]
[1726982516117,0.80095052,2588.3,2588.1,3.86383]
[1726982516317,0.80095052,2588.3,2588.0,3.86397]
[1726982516318,0.80095052,2588.3,2588.2,3.86368]
[1726982518039,0.80095052,2588.3,2588.0,7.72781]
[1726982518251,0.80095052,2588.3,2588.1,3.86379]
[1726982518471,0.80095052,2588.3,2588.0,3.86384]
[1726982518620,0.80095052,2588.2,2588.0,3.86384]
[1726982520736,0.80095052,2588.2,2587.8,3.8642]
[1726982520952,0.80095052,2588.1,2587.8,3.8642]
[1726982521843,0.80095052,2588.0,2587.8,3.86424]
[1726982522034,1.78008126,2588.1,2587.8,7.72845]
[1726982522222,0.80095052,2588.1,2587.9,3.86405]
[1726982523721,3.12435052,2588.0,2587.7,3.86433]
[1726982524012,3.12435052,2588.0,2587.8,3.86424]
[1726982525120,3.12435052,2588.0,2587.6,3.86453]
[1726982525329,0.80095052,2587.9,2587.6,3.86453]
[1726982525759,0.80095052,2587.8,2587.6,3.86453]
[1726982526148,0.80095052,2587.8,2587.6,3.86449]
[1726982526351,1.20142579,2587.9,2587.6,3.86449]
[1726982526352,0.80095052,2587.9,2587.6,3.86449]
[1726982526679,0.80095052,2587.9,2587.7,2.3594]
[1726982526832,0.80095052,2588.1,2587.9,3.86413]
[1726982527035,0.80095052,2588.1,2587.8,3.55757698]
[1726982527036,0.80095052,2588.4,2588.3,3.86353]
[1726982527234,1.60190105,2588.6,2588.5,6.22264]
[1726982527235,0.80095052,2588.6,2588.5,6.22264]
[1726982527477,0.80095052,2588.9,2588.7,3.86294]
[1726982527682,0.80095052,2588.9,2588.5,2.3594]
[1726982527683,0.80095052,2589.0,2588.8,3.86279]
[1726982527970,0.80095052,2589.1,2588.9,3.86254]
[1726982528128,0.80095052,2589.1,2588.8,7.72558]
[1726982528333,0.80095052,2589.0,2588.9,3.86263]
[1726982528567,0.80095052,2589.1,2588.9,3.86263]
[1726982528936,0.80095052,2589.1,2588.8,3.86268]
[1726982529334,0.80095052,2589.1,2588.9,3.86263]
[1726982529578,1.20142579,2589.2,2588.9,3.86263]
[1726982529579,0.80095052,2589.2,2588.9,3.86263]
[1726982529880,0.80095052,2589.1,2588.8,3.86268]
[1726982530235,0.80095052,2589.0,2588.6,3.86306]
[1726982530459,0.80095052,2589.0,2588.6,3.86299]
[1726982530666,0.80095052,2589.1,2588.9,3.86264]
[1726982530875,0.80095052,2589.2,2588.9,3.86256]
[1726982531063,0.80095052,2589.2,2589.0,3.86249]
[1726982531472,3.12435052,2589.3,2589.0,3.86249]
[1726982534699,2.3234,2589.3,2589.0,3.86249]
[1726982535982,2.3234,2589.3,2588.7,0.07724731]
[1726982535983,0.80095052,2589.4,2589.1,3.86234]
[1726982536256,3.60232579,2589.6,2589.1,3.86234]
[1726982536257,0.80095052,2589.5,2589.1,3.86234]
[1726982536564,7.06345052,2589.6,2589.1,3.86234]
[1726982536757,0.80095052,2589.5,2589.1,3.86234]
[1726982536957,3.20185052,2589.6,2589.3,3.86196]
[1726982537350,0.80095052,2589.6,2589.4,3.86188]
[1726982537553,1.60190105,2589.9,2589.4,3.86189]
[1726982537554,0.80095052,2589.9,2589.4,3.86189]
[1726982537762,0.80095052,2589.9,2589.6,3.86157]
[1726982538004,2.4009,2590.0,2589.4,3.86176]
[1726982538005,3.20185052,2590.0,2589.4,3.86176]
[1726982538153,4.66218052,2589.9,2589.4,3.86176]
[1726982538565,3.86123,2589.9,2589.4,3.86176]
[1726982538769,5.87851617,2589.9,2589.4,3.86176]
[1726982538995,5.87851617,2589.9,2589.2,3.86213]
[1726982538996,3.86146,2589.7,2589.2,3.86213]
[1726982539591,3.20185052,2589.8,2589.0,2.4784]
[1726982539592,7.06320052,2589.8,2589.0,2.4784]
[1726982539795,3.20185052,2589.8,2589.3,3.86191]
[1726982539961,2.4009,2589.8,2589.3,3.86191]
[1726982540159,2.4009,2589.8,2589.5,3.86172]
[1726982540701,2.4009,2589.8,2589.3,7.72383]
[1726982540903,0.80095052,2590.0,2589.6,3.8615]
[1726982541103,4.69973072,2590.1,2589.5,3.86174]
[1726982541306,3.8987802,2590.1,2589.5,3.86174]
[1726982541983,3.8987802,2590.1,2589.5,7.7234]
[1726982542971,3.8987802,2590.1,2589.6,3.86152]
[1726982543473,0.0378602,2590.1,2589.7,3.86141]
[1726982543785,0.0378602,2590.1,2589.9,3.86102]
[1726982543976,0.0378602,2590.1,2590.0,3.861]
[1726982544399,0.0378602,2590.1,2590.0,3.93821377]
[1726982545320,0.0378602,2590.1,2590.0,3.861]
[1726982546220,0.0378602,2590.1,2590.0,6.40460263]
[1726982549187,0.0378602,2590.1,2590.0,6.3274]
[1726982551581,0.0378602,2590.1,2590.0,6.40459818]
[1726982551932,0.0378602,2590.1,2590.0,6.3274]
[1726982552224,0.0378602,2590.1,2590.0,6.40459817]
[1726982552532,0.0378602,2590.1,2590.0,6.3274]
[1726982553228,0.0378602,2590.1,2590.0,6.40459809]
[1726982553433,0.0378602,2590.1,2590.0,9.40459809]
[1726982553631,0.0378602,2590.1,2590.0,9.3274]
[1726982564544,0.0378602,2590.1,2590.0,12.88497698]
[1726982566348,0.0378602,2590.1,2590.0,16.44255396]
[1726982566950,0.0378602,2590.1,2590.0,16.84538582]
[1726982567777,0.0378602,2590.1,2590.0,13.28780884]
[1726982567950,0.0378602,2590.1,2590.0,12.88497698]
[1726982579994,0.0378602,2590.1,2590.0,10.41857698]
[1726982582410,0.0378602,2590.1,2589.9,3.86102]
[1726982582792,0.0378602,2590.1,2590.0,3.861]
[1726982591056,0.0378602,2590.1,2590.0,4.24868277]
[1726982597414,0.0378602,2590.1,2590.0,0.38768277]
[1726982597558,0.0378602,2590.1,2590.0,3.861]
[1726982598896,0.0378602,2590.1,2589.9,3.86105]
[1726982599461,0.0378602,2590.1,2590.0,3.861]
[1726982611995,0.0378602,2590.1,2590.0,9.23851128]
[1726982612182,0.0378602,2590.1,2590.0,9.1613]
[1726982613419,0.0378602,2590.1,2590.0,10.80259366]
[1726982613991,0.0378602,2590.1,2590.0,12.71582831]
[1726982615720,0.0378602,2590.1,2590.0,16.27035662]
[1726982616112,0.0378602,2590.9,2590.8,6.16011]
[1726982616308,0.0378602,2590.9,2590.8,12.79182147]
[1726982616483,0.0378602,2590.9,2590.8,12.71463831]
[1726982616689,0.0378602,2590.9,2590.8,10.41433831]
[1726982620625,0.0378602,2590.9,2590.8,12.71463831]
[1726982640621,0.0378602,2590.9,2590.8,6.85981]
[1726982640832,0.0378602,2590.9,2590.8,10.4915166]
[1726982641066,0.0378602,2590.9,2590.8,10.41433831]
[1726982641364,0.0378602,2590.9,2590.8,12.84613831]
[1726982644068,0.0378602,2591.7,2591.6,3.85862]
[1726982644362,0.0378602,2591.7,2591.6,7.41314831]
[1726982645049,0.0378602,2591.7,2591.6,3.85862]
[1726982646853,2.3965602,2591.7,2591.6,3.85862]
[1726982649049,2.3965602,2591.7,2591.3,3.85904]
[1726982649359,2.3965602,2591.7,2591.3,3.85899]
[1726982649561,2.3965602,2591.7,2591.3,7.71796]
[1726982649718,2.3965602,2591.7,2591.2,6.85912]
[1726982650126,2.3965602,2591.7,2591.3,3.85906]
[1726982651178,2.3965602,2591.7,2591.2,3.0]
[1726982651179,2.3587,2591.6,2591.2,6.85913]
[1726982651755,2.3587,2591.6,2591.2,3.0]
[1726982653969,2.3587,2591.6,2591.2,6.85919]
[1726982655674,3.85892,2591.4,2590.9,3.85957]
[1726982655984,2.4578,2591.3,2590.9,3.85957]
[1726982656482,2.4578,2591.2,2590.8,6.85978]
[1726982656686,2.4578,2591.2,2590.8,3.85973]
[1726982657181,3.25875052,2591.2,2590.8,3.85973]
[1726982657561,2.4578,2591.1,2590.7,3.93703212]
[1726982658010,2.4578,2591.1,2590.9,3.85962]
[1726982658308,2.4578,2591.1,2590.7,3.85984]
[1726982658495,2.4578,2591.1,2590.8,3.8598]
[1726982658811,2.4578,2591.1,2590.9,3.85965]
[1726982659180,2.4578,2591.1,2590.9,3.85958]
[1726982661403,3.25875052,2591.1,2590.9,3.85958]
[1726982661603,2.4578,2591.0,2590.7,3.85981]
[1726982661924,2.4578,2590.9,2590.6,3.86009]
[1726982662096,3.85974,2590.9,2590.4,3.0]
[1726982662313,3.85974,2590.9,2590.3,3.86043]
[1726982662314,2.4578,2590.7,2590.3,3.86043]
[1726982662633,3.25875052,2590.7,2590.3,3.86043]
[1726982662766,2.4578,2590.7,2590.4,3.86037]
[1726982662966,2.4578,2590.7,2590.5,3.86025]
[1726982663785,2.4578,2590.7,2590.3,7.72086]
[1726982668263,2.4578,2590.7,2590.1,3.55452831]
[1726982668467,2.4578,2590.7,2590.5,3.86025]
[1726982669322,2.4578,2590.7,2590.6,3.8601]
[1726982674502,2.2894,2591.0,2590.8,3.85975]
[1726982675015,2.2894,2591.0,2590.4,3.55452831]
[1726982675550,2.2894,2591.0,2590.5,3.86013]
[1726982675714,2.2894,2591.0,2590.5,7.7203]
[1726982675920,2.2894,2591.0,2590.6,3.86009]
[1726982676945,0.55,2590.9,2590.5,3.86013]
[1726982677155,0.55,2590.9,2590.1,10.93452831]
[1726982677156,2.2894,2590.8,2590.4,3.8604]
[1726982679205,2.2894,2590.8,2590.5,3.86024]
[1726982680239,2.2894,2590.8,2590.4,3.86037]
[1726982681249,2.2894,2590.8,2590.4,3.86032]
[1726982681451,2.2894,2590.8,2590.4,7.72064]
[1726982681942,2.2894,2590.8,2590.4,3.86032]
[1726982682308,2.2894,2590.8,2590.4,7.72064]
[1726982683048,2.2894,2590.8,2590.3,0.0772042]
[1726982683255,2.2894,2590.8,2590.6,3.86003]
[1726982683606,2.2894,2590.8,2590.5,3.86011]
[1726982685138,2.2894,2590.8,2590.4,3.86037]
[1726982685710,2.2894,2590.8,2590.5,3.86025]
[1726982689754,2.2894,2590.8,2590.3,3.86047]
[1726982689951,2.4505,2590.7,2590.3,3.86047]
[1726982692577,2.4505,2590.7,2590.1,11.24078]
[1726982692578,4.66092052,2590.7,2590.1,15.1015]
[1726982692873,2.4433,2590.6,2590.1,3.86073]
[1726982693079,3.24425052,2590.6,2590.2,3.86062]
[1726982695848,3.24425052,2590.6,2590.3,3.86053]
[1726982698756,0.80095052,2590.5,2590.3,3.86053]
[1726982698948,3.24425052,2590.6,2590.3,3.86053]
[1726982699148,0.80095052,2590.5,2590.3,3.86053]
[1726982699362,0.80095052,2590.5,2590.4,3.8604]
[1726982699689,2.4433,2590.6,2590.4,3.8604]
[1726982700032,3.24425052,2590.6,2590.4,3.8604]
[1726982701587,0.80095052,2590.5,2590.4,3.8604]
[1726982701771,3.24425052,2590.6,2590.4,3.8604]
[1726982702435,0.80095052,2590.5,2590.4,3.8604]
[1726982703583,0.80095052,2590.5,2590.3,3.86048]
[1726982703738,0.80095052,2590.4,2590.3,3.86047]
[1726982703937,0.80095052,2590.4,2590.1,3.8607]
[1726982704183,0.80095052,2590.4,2590.3,3.86055]
[1726982704381,0.80095052,2590.5,2590.3,3.86055]
[1726982704684,0.80095052,2590.5,2590.4,3.8604]
[1726982708448,0.80095052,2590.5,2590.4,5.50159545]
[1726982708737,0.80095052,2590.7,2590.5,6.86025]
[1726982708971,0.80095052,2590.7,2590.6,5.50129545]
[1726982709154,0.80095052,2590.8,2590.7,3.85996]
[1726982712094,0.80095052,2590.8,2590.7,6.11726]
[1726982712308,1.20142579,2590.9,2590.8,3.85981]
[1726982712503,1.20142579,2591.0,2590.9,3.85966]
[1726982712665,1.20293627,2591.0,2590.7,3.85994]
[1726982712875,0.80195033,2590.8,2590.6,7.72011]
[1726982713078,3.26405033,2590.7,2590.5,3.86025]
[1726982713313,0.80195033,2590.6,2590.5,3.86025]
[1726982715541,0.80195033,2590.6,2590.4,7.72062]
[1726982715736,0.80195033,2590.6,2590.4,3.8603]
[1726982716029,3.66503627,2590.5,2590.3,3.86052]
[1726982716229,0.80168774,2590.4,2590.2,3.8606]
[1726982716532,0.80168774,2590.3,2590.2,3.8606]
[1726982716703,1.20293627,2590.4,2590.0,3.86087]
[1726982717034,2.4621,2590.2,2590.0,3.86087]
[1726982717234,3.26374865,2590.2,2590.0,3.86087]
[1726982717727,2.4621,2590.2,2590.1,3.86081]
[1726982718531,3.26374865,2590.2,2590.1,3.86081]
[1726982718685,0.80164865,2590.2,2590.1,3.86081]
[1726982721311,0.80164865,2590.3,2590.2,3.8607]
[1726982721512,0.80164865,2590.3,2590.1,3.86081]
[1726982722232,0.80164865,2590.3,2590.1,3.86077]
[1726982722715,0.80164865,2590.3,2590.1,3.86076]
[1726982723731,0.80164865,2590.3,2590.2,3.8607]
[1726982725092,0.80164865,2590.4,2590.3,3.86055]
[1726982725630,0.80164865,2590.6,2590.5,3.86025]
[1726982725924,0.80164865,2590.7,2590.5,3.86025]
[1726982726125,0.80164865,2590.8,2590.6,3.8601]
[1726982726331,0.80164865,2590.9,2590.8,3.85981]
[1726982726889,3.26374865,2591.0,2590.9,3.85966]
[1726982727122,1.20293627,2591.1,2590.9,7.41410966]
[1726982727123,0.80164865,2591.1,2590.9,7.41410966]
[1726982727448,0.80164865,2591.3,2591.2,3.85921]